bitfinex-derivatives/quotes_BTCF0:USTF0_20250930
["timestamp","ask_amount","ask_price","bid_price","bid_amount"]
[1759241467786,0.1604092,113060.0,113050.0,0.4570138]
[1759241467987,0.0884092,113060.0,113050.0,0.4500138]
[1759241468175,0.4492056,113070.0,113060.0,0.0884091]
[1759241468489,0.8472,113070.0,113060.0,0.4492091]
[1759241468787,0.1244014,113070.0,113060.0,0.0924091]
[1759241468989,0.64889885,113070.0,113060.0,0.004]
[1759241469782,0.1244014,113070.0,113060.0,0.0924092]
[1759241470182,0.64889885,113070.0,113060.0,0.4532092]
[1759241470383,0.61289885,113070.0,113060.0,0.0884092]
[1759241470584,0.0884014,113070.0,113060.0,0.0884092]
[1759241470785,0.61289885,113070.0,113060.0,0.0884092]
[1759241471088,0.61289885,113070.0,113050.0,0.50457668]
[1759241471281,0.61289885,113070.0,113050.0,0.49757668]
[1759241471482,0.68589885,113070.0,113060.0,0.007]
[1759241471682,0.1614014,113070.0,113060.0,0.0954092]
[1759241471882,0.68589885,113070.0,113060.0,0.0954092]
[1759241472084,1.04669885,113070.0,113060.0,0.007]
[1759241472284,0.68589885,113070.0,113060.0,0.0884091]
[1759241472686,0.72289885,113070.0,113060.0,0.0884091]
[1759241472888,0.11,113070.0,113060.0,0.0888091]
[1759241473194,0.9353213,113070.0,113060.0,0.0888091]
[1759241473585,1.45981875,113070.0,113060.0,0.0888091]
[1759241473786,0.0884013,113070.0,113060.0,0.0888091]
[1759241473987,0.9352813,113070.0,113060.0,0.0888091]
[1759241474387,1.82057875,113070.0,113060.0,0.0004]
[1759241474793,2.22057875,113070.0,113060.0,0.0004]
[1759241474993,0.0884248,113040.0,113030.0,0.49679148]
[1759241475194,0.0814248,113040.0,113030.0,0.49679148]
[1759241475588,0.61291935,113050.0,113040.0,0.0884248]
[1759241476291,0.0884248,113040.0,113030.0,0.14299268]
[1759241476490,0.61291765,113050.0,113040.0,0.0884248]
[1759241476886,0.0884202,113050.0,113040.0,0.0884248]
[1759241477086,1.2959729,113060.0,113040.0,0.0884248]
[1759241477288,0.036,113050.0,113040.0,0.61692225]
[1759241477488,0.1244169,113050.0,113040.0,0.4532248]
[1759241477687,0.036,113050.0,113040.0,1.37772225]
[1759241477993,0.124417,113050.0,113040.0,0.90078848]
[1759241478497,0.036,113050.0,113040.0,0.90078848]
[1759241478682,0.036,113050.0,113040.0,1.38472225]
[1759241478683,0.108,113050.0,113040.0,1.38472225]
[1759241478883,0.108,113050.0,113040.0,1.44814049]
[1759241479895,1.01456452,113080.0,113070.0,0.0884013]
[1759241480197,0.0884013,113070.0,113060.0,0.13588397]
[1759241480393,1.07166397,113080.0,113070.0,0.0884013]
[1759241480805,0.07769851,113080.0,113070.0,0.0884013]
[1759241481102,0.0883935,113080.0,113070.0,0.0884013]
[1759241481293,0.0883935,113080.0,113060.0,1.02118112]
[1759241481489,0.4491935,113080.0,113060.0,1.77937722]
[1759241481694,0.4661935,113080.0,113070.0,0.0884013]
[1759241481896,1.06186858,113080.0,113070.0,0.0884013]
[1759241482397,1.09786858,113080.0,113070.0,0.004]
[1759241482593,1.08986858,113080.0,113070.0,0.0924013]
[1759241483300,0.56537113,113080.0,113070.0,0.0924013]
[1759241483903,0.47697763,113080.0,113070.0,0.0924013]
[1759241484089,0.56537123,113080.0,113070.0,0.61689875]
[1759241484293,0.57429118,113080.0,113070.0,0.0924013]
[1759241484497,0.21349118,113080.0,113070.0,0.0924013]
[1759241485200,0.08009758,113080.0,113070.0,0.61289875]
[1759241485392,0.4491861,113090.0,113080.0,0.0883936]
[1759241485702,0.3608,113090.0,113080.0,0.61289105]
[1759241485997,0.3608,113090.0,113080.0,0.13587337]
[1759241486299,0.4491751,113110.0,113100.0,0.0883779]
[1759241486497,0.0883751,113110.0,113100.0,0.0883779]
[1759241486900,1.84053865,113120.0,113110.0,0.0883701]
[1759241487097,0.4697212,113120.0,113110.0,0.0883701]
[1759241487295,0.1089156,113120.0,113110.0,0.0883701]
[1759241488098,0.09709177,113120.0,113110.0,0.4491701]
[1759241488293,0.09709177,113120.0,113110.0,0.3608]
[1759241488698,0.62158922,113120.0,113110.0,0.3608]
[1759241488898,0.62158922,113120.0,113110.0,0.4491701]
[1759241489102,0.63858922,113120.0,113110.0,0.4491701]
[1759241489298,0.63858922,113120.0,113100.0,1.34285227]
[1759241489501,0.0883701,113110.0,113100.0,1.34281227]
[1759241489696,0.11409707,113120.0,113110.0,0.0883701]
[1759241489903,0.63859452,113120.0,113110.0,0.0883701]
[1759241490306,0.02572937,113120.0,113110.0,0.0883701]
[1759241490503,0.08748103,113120.0,113110.0,0.4491701]
[1759241490697,0.017,113120.0,113110.0,0.4491701]
[1759241491198,0.017,113120.0,113110.0,0.97366755]
[1759241491403,0.09704901,113130.0,113120.0,0.0883624]
[1759241492904,0.09704901,113130.0,113120.0,0.4491624]
[1759241493300,0.11404901,113130.0,113120.0,0.4491624]
[1759241493713,0.0883623,113120.0,113110.0,1.81954005]
[1759241493899,0.62154396,113130.0,113110.0,0.97366005]
[1759241494101,0.62154396,113130.0,113120.0,0.0883622]
[1759241494303,0.09704651,113130.0,113120.0,0.0883622]
[1759241494605,0.16890635,113130.0,113120.0,0.0883622]
[1759241494807,0.16890635,113130.0,113120.0,1.37365965]
[1759241494808,0.07185984,113130.0,113120.0,1.37365965]
[1759241495007,0.46967555,113160.0,113140.0,0.0883466]
[1759241495008,0.9941741,113160.0,113140.0,0.0883466]
[1759241495204,0.0883388,113150.0,113130.0,0.97364665]
[1759241495409,0.97363625,113150.0,113140.0,0.0883466]
[1759241495797,0.4491388,113150.0,113140.0,0.0883466]
[1759241496001,0.0883466,113140.0,113120.0,0.88529745]
[1759241496306,0.0883544,113130.0,113120.0,0.4491585]
[1759241496499,0.88529745,113140.0,113130.0,0.0883544]
[1759241496500,0.97364905,113140.0,113130.0,0.0883544]
[1759241496908,0.53573561,113150.0,113140.0,0.0883466]
[1759241497107,0.0883466,113140.0,113130.0,0.0883478]
[1759241497304,0.0883466,113140.0,113130.0,0.61284525]
[1759241497505,0.0883466,113140.0,113130.0,0.97364525]
[1759241497819,0.0883466,113140.0,113130.0,0.61284525]
[1759241498012,0.0883466,113140.0,113120.0,1.2951554]
[1759241498209,0.0883466,113140.0,113120.0,1.81965285]
[1759241498210,0.61284405,113140.0,113120.0,1.81965285]
[1759241498513,0.0883466,113140.0,113130.0,0.0883544]
[1759241499015,0.1053466,113140.0,113130.0,0.0883544]
[1759241499511,0.017,113140.0,113130.0,0.61285185]
[1759241499710,0.0883466,113140.0,113130.0,0.61285185]
[1759241499911,0.1053466,113140.0,113130.0,0.61285185]
[1759241500211,0.017,113140.0,113130.0,0.97365185]
[1759241500506,0.52770133,113150.0,113140.0,0.0883466]
[1759241500706,0.0883466,113140.0,113130.0,0.61284625]
[1759241501016,0.52770343,113150.0,113140.0,0.0883466]
[1759241501700,0.0883466,113140.0,113130.0,0.97364675]
[1759241501899,0.017,113140.0,113130.0,1.81904675]
[1759241502304,0.017,113140.0,113130.0,0.4491493]
[1759241502509,0.0883544,113130.0,113120.0,1.20616]
[1759241502811,0.0883517,113140.0,113130.0,0.0887544]
[1759241503716,0.1053517,113140.0,113130.0,0.0887544]
[1759241504212,0.52770373,113150.0,113130.0,0.0887544]
[1759241504511,0.16690373,113150.0,113140.0,0.0883466]
[1759241504715,0.07855933,113150.0,113140.0,0.0883466]
[1759241504919,0.15793211,113150.0,113140.0,0.54343946]
[1759241505106,0.0883388,113150.0,113140.0,0.0883466]
[1759241505315,0.0883388,113150.0,113140.0,0.9335866]
[1759241505504,0.09004796,113160.0,113150.0,0.0883388]
[1759241505711,0.53917896,113160.0,113150.0,0.0883388]
[1759241506316,0.0883389,113150.0,113140.0,0.4491423]
[1759241506716,0.0883389,113150.0,113140.0,0.9335023]
[1759241506918,0.0883389,113150.0,113140.0,1.2943023]
[1759241507119,0.0883389,113150.0,113140.0,0.4491423]
[1759241507416,0.0883389,113150.0,113140.0,1.2942623]
[1759241508321,0.0883389,113150.0,113140.0,0.0883423]
[1759241508618,0.0883389,113150.0,113140.0,0.9334223]
[1759241509219,0.0174,113160.0,113150.0,0.0883388]
[1759241509414,0.0174,113160.0,113150.0,0.9333788]
[1759241509616,0.017,113160.0,113150.0,0.0883388]
[1759241509813,0.105731,113160.0,113150.0,0.9333388]
[1759241510119,0.0883388,113150.0,113140.0,0.0883431]
[1759241510320,0.1053388,113150.0,113140.0,0.0883431]
[1759241510514,0.4661388,113150.0,113140.0,0.0883431]
[1759241510817,0.1053388,113150.0,113140.0,0.0883431]
[1759241511013,0.4661388,113150.0,113140.0,0.0883431]
[1759241511213,0.1053388,113150.0,113140.0,0.0887431]
[1759241511615,0.0883388,113150.0,113140.0,0.0887431]
[1759241512122,0.4491388,113150.0,113140.0,0.0887431]
[1759241512322,0.4491388,113150.0,113140.0,0.0887466]
[1759241512616,0.4491388,113150.0,113140.0,0.0004]
[1759241512817,0.4491388,113150.0,113140.0,0.0887466]
[1759241513818,0.4491388,113150.0,113140.0,0.0004]
[1759241514021,0.0883544,113130.0,113120.0,0.0883596]
[1759241514228,0.54345196,113130.0,113120.0,0.0883623]
[1759241514521,0.0883591,113130.0,113120.0,0.0883623]
[1759241514917,0.90424516,113140.0,113130.0,0.0883545]
[1759241515121,1.74900516,113140.0,113130.0,0.0883545]
[1759241515327,0.0883545,113130.0,113120.0,0.0887597]
[1759241515620,1.2939048,113150.0,113140.0,0.0883467]
[1759241515821,1.2938633,113150.0,113140.0,0.0883467]
[1759241516416,0.46902398,113150.0,113140.0,0.0883467]
[1759241516616,1.2938633,113150.0,113140.0,0.0883467]
[1759241516816,0.4491433,113150.0,113140.0,0.0883467]
[1759241517019,1.2938633,113150.0,113140.0,0.0883467]
[1759241517223,0.4661433,113150.0,113140.0,0.0883467]
[1759241517424,1.2938233,113150.0,113140.0,0.0883467]
[1759241517818,0.0883467,113140.0,113130.0,0.48087387]
[1759241518620,1.74887636,113150.0,113140.0,0.0883467]
[1759241518828,0.0883467,113140.0,113130.0,0.48087377]
[1759241519324,1.74887776,113150.0,113140.0,0.0883467]
[1759241519625,1.74883776,113150.0,113140.0,0.12007207]
[1759241519819,1.2937449,113150.0,113140.0,0.12007207]
[1759241520217,0.4491449,113150.0,113140.0,0.12007207]
[1759241520418,0.54829386,113160.0,113150.0,0.0883389]
[1759241520721,0.4305035,113160.0,113150.0,0.57515713]
[1759241520921,0.0697035,113160.0,113150.0,0.57515713]
[1759241521222,0.0697035,113160.0,113150.0,0.16754404]
[1759241521421,0.0004,113160.0,113150.0,1.3834369]
[1759241521631,0.88616,113180.0,113170.0,0.0883232]
[1759241521926,0.3608,113180.0,113170.0,0.0883232]
[1759241522318,1.2936404,113180.0,113170.0,0.0883232]
[1759241522520,1.20568,113180.0,113170.0,0.12006553]
[1759241522928,1.22268,113180.0,113170.0,0.12006553]
[1759241523229,1.3109954,113180.0,113170.0,0.12006553]
[1759241523727,2.16608826,113180.0,113170.0,0.03174233]
[1759241524027,0.0883232,113170.0,113160.0,0.03254233]
[1759241524230,0.90421606,113170.0,113160.0,0.0008]
[1759241524427,1.30421606,113170.0,113160.0,0.03254233]
[1759241524622,0.088331,113160.0,113150.0,0.03174233]
[1759241524824,1.4577949,113160.0,113150.0,0.03254233]
[1759241525023,1.4577949,113160.0,113150.0,0.12008113]
[1759241525228,1.8185949,113160.0,113150.0,0.03214233]
[1759241525428,2.2185949,113160.0,113150.0,0.0004]
[1759241525627,2.2185949,113160.0,113140.0,0.03254233]
[1759241525628,0.0883388,113150.0,113140.0,0.12008893]
[1759241525829,0.54343166,113150.0,113140.0,0.12088893]
[1759241526028,0.54343166,113150.0,113140.0,0.12008893]
[1759241526331,0.0883388,113150.0,113140.0,0.12048893]
[1759241526832,0.9912418,113160.0,113150.0,0.0883388]
[1759241527134,0.53654894,113160.0,113150.0,0.0883388]
[1759241527429,1.36378204,113160.0,113150.0,0.0883388]
[1759241527633,1.36378204,113160.0,113150.0,0.12008113]
[1759241528427,1.00298204,113160.0,113150.0,0.12008113]
[1759241529034,1.01998204,113160.0,113150.0,0.12008113]
[1759241529228,0.93165104,113160.0,113150.0,0.48088113]
[1759241529532,1.01998204,113160.0,113150.0,0.1675609]
[1759241530430,0.93153104,113160.0,113150.0,0.1675609]
[1759241530735,0.0174,113160.0,113150.0,1.35171143]
[1759241530934,0.0174,113160.0,113150.0,0.8491388]
[1759241531122,0.017,113160.0,113150.0,1.3676499]
[1759241531327,0.0174,113160.0,113150.0,2.2117699]
[1759241531528,0.017,113160.0,113150.0,2.2117699]
[1759241531733,0.0174,113160.0,113150.0,2.2117699]
[1759241532035,0.0174,113160.0,113150.0,2.2117299]
[1759241533830,0.0174,113160.0,113150.0,1.3676499]
[1759241534232,0.0174,113160.0,113150.0,2.2116099]
[1759241535134,0.0174,113160.0,113150.0,1.3676499]
[1759241535340,0.0174,113160.0,113150.0,2.2115699]
[1759241536530,0.36979099,113190.0,113180.0,0.0883154]
[1759241536736,1.2945405,113200.0,113190.0,0.0883076]
[1759241537040,1.37175451,113200.0,113190.0,0.0883076]
[1759241537542,1.37215451,113200.0,113190.0,0.0883076]
[1759241537737,0.52831451,113200.0,113190.0,0.0883076]
[1759241538043,0.44001401,113200.0,113190.0,0.0883076]
[1759241538232,1.28381401,113200.0,113190.0,0.0883076]
[1759241538429,0.16751381,113200.0,113190.0,0.0883076]
[1759241538833,0.16751381,113200.0,113180.0,0.52836551]
[1759241539039,0.16751381,113200.0,113180.0,0.52835951]
[1759241539237,0.07921401,113200.0,113190.0,0.0883076]
[1759241539632,0.07921401,113200.0,113190.0,0.9359005]
[1759241539836,0.07035799,113200.0,113190.0,0.98345057]
[1759241540039,1.2943679,113220.0,113210.0,0.088292]
[1759241540040,0.3624,113220.0,113210.0,0.088292]
[1759241540845,0.08084722,113220.0,113210.0,0.088292]
[1759241541032,0.0004,113220.0,113210.0,0.088292]
[1759241541234,0.088292,113210.0,113200.0,0.03170004]
[1759241541435,0.449092,113210.0,113190.0,0.52835311]
[1759241541635,0.90418486,113210.0,113200.0,0.0008]
[1759241542238,0.3608,113210.0,113200.0,0.0890998]
[1759241542850,0.3608,113210.0,113200.0,0.0008]
[1759241543038,0.449092,113210.0,113200.0,0.0008]
[1759241543243,0.449492,113210.0,113200.0,0.0890998]
[1759241543742,0.3612,113210.0,113200.0,0.0890998]
[1759241544642,0.0004,113210.0,113200.0,0.90499266]
[1759241544843,0.0004,113210.0,113200.0,0.9366927]
[1759241545041,0.06964813,113220.0,113210.0,0.088292]
[1759241545236,0.0008,113220.0,113210.0,0.90418486]
[1759241545443,0.3608,113230.0,113220.0,0.0882842]
[1759241545639,0.3616,113230.0,113220.0,0.0882842]
[1759241546045,0.0008,113230.0,113220.0,0.54337706]
[1759241546451,0.0008,113230.0,113220.0,0.90417706]
[1759241546650,0.36975198,113240.0,113230.0,0.0882764]
[1759241546847,0.0793747,113240.0,113230.0,0.0882764]
[1759241547042,0.0793747,113240.0,113230.0,0.54336926]
[1759241547449,0.0785747,113240.0,113230.0,0.54336926]
[1759241547646,1.31398329,113250.0,113240.0,0.0882691]
[1759241548050,1.22572179,113250.0,113240.0,0.0882691]
[1759241548248,1.29601602,113250.0,113240.0,0.0882691]
[1759241548752,0.43189423,113250.0,113240.0,0.0882691]
[1759241548955,0.07109423,113250.0,113240.0,0.0882691]
[1759241549449,0.0799229,113250.0,113240.0,0.0882691]
[1759241549648,0.0008,113250.0,113240.0,0.0882691]
[1759241549849,0.0008,113250.0,113240.0,0.54336196]
[1759241551049,0.449053,113260.0,113240.0,0.54290082]
[1759241551244,0.0004,113250.0,113240.0,0.54336136]
[1759241553157,0.0004,113250.0,113240.0,0.90416136]
[1759241553651,0.0886613,113250.0,113240.0,0.0882691]
[1759241554255,0.0886613,113250.0,113240.0,0.0886691]
[1759241554456,0.0886613,113250.0,113240.0,0.0004]
[1759241554647,0.4494613,113250.0,113240.0,0.0004]
[1759241555146,0.0882692,113240.0,113230.0,0.0882711]
[1759241555343,0.4490692,113240.0,113230.0,0.0008]
[1759241555546,0.088281,113230.0,113210.0,0.81589286]
[1759241555751,0.449081,113230.0,113220.0,0.0008]
[1759241555944,0.449081,113230.0,113220.0,0.0882848]
[1759241556151,0.449081,113230.0,113220.0,0.0886848]
[1759241557451,0.449081,113230.0,113220.0,0.0004]
[1759241557651,1.30417386,113230.0,113220.0,0.0004]
[1759241557857,1.691761,113230.0,113220.0,0.0004]
[1759241558148,0.0882848,113220.0,113210.0,0.0890917]
[1759241558350,0.4490848,113220.0,113210.0,0.0008]
[1759241558557,1.30417766,113220.0,113210.0,0.0008]
[1759241558949,0.0882922,113210.0,113200.0,0.0882992]
[1759241559153,0.4490922,113210.0,113200.0,0.0882992]
[1759241559449,0.4490922,113210.0,113200.0,0.0890992]
[1759241559650,0.4490871,113220.0,113210.0,0.0882922]
[1759241559849,1.2917271,113220.0,113210.0,0.0882922]
[1759241560154,0.4490871,113220.0,113210.0,0.0882922]
[1759241560353,0.0882871,113220.0,113210.0,0.0882922]
[1759241560556,0.0886871,113220.0,113210.0,0.0882922]
[1759241560752,0.0004,113220.0,113210.0,0.0882922]
[1759241561062,0.0882844,113220.0,113210.0,0.0882922]
[1759241561757,0.0886844,113220.0,113210.0,0.0882922]
[1759241561954,0.4494844,113220.0,113200.0,0.54418746]
[1759241562157,0.4494844,113220.0,113210.0,0.0882921]
[1759241562948,0.3612,113220.0,113210.0,0.0882921]
[1759241563455,0.4494845,113220.0,113210.0,0.0882921]
[1759241563955,0.3612,113220.0,113210.0,0.0882921]
[1759241564161,0.3612,113220.0,113210.0,0.54338496]
[1759241564362,0.3612,113220.0,113210.0,0.61118565]
[1759241564563,0.0882922,113210.0,113200.0,0.48159754]
[1759241564862,0.97238335,113220.0,113210.0,0.0882926]
[1759241565061,0.3612,113220.0,113210.0,0.0882926]
[1759241565255,0.0004,113220.0,113210.0,0.97198615]
[1759241565651,0.3608,113230.0,113220.0,0.0882848]
[1759241565853,0.3608,113240.0,113230.0,0.088277]
[1759241566059,1.38329069,113250.0,113240.0,0.0882689]
[1759241566357,0.43266373,113250.0,113240.0,0.61116245]
[1759241566756,0.43266373,113250.0,113240.0,0.64286249]
[1759241566955,0.43186373,113250.0,113240.0,0.64286249]
[1759241567151,0.43226373,113250.0,113240.0,0.64286249]
[1759241567756,0.07146373,113250.0,113240.0,0.69041256]
[1759241567950,0.07146373,113250.0,113240.0,0.16751901]
[1759241568351,0.07106373,113250.0,113240.0,0.16751901]
[1759241568550,0.45779079,113260.0,113250.0,0.088261]
[1759241568758,0.45859079,113260.0,113240.0,0.69041086]
[1759241569363,0.45859079,113260.0,113250.0,0.0882613]
[1759241569558,0.37033699,113260.0,113250.0,0.61115485]
[1759241570058,0.00953699,113260.0,113250.0,0.64285489]
[1759241570263,0.00953699,113260.0,113250.0,0.61115485]
[1759241570662,0.08017089,113260.0,113250.0,0.61115485]
[1759241570960,0.0008,113260.0,113250.0,1.00365489]
[1759241571567,0.0882453,113270.0,113260.0,0.0882531]
[1759241571864,0.0890453,113270.0,113260.0,0.61114665]
[1759241572168,0.00986357,113270.0,113260.0,0.61114665]
[1759241572466,0.00906357,113270.0,113260.0,0.64284669]
[1759241572653,0.4498446,113280.0,113270.0,0.0882457]
[1759241573270,0.0882457,113270.0,113260.0,0.64284179]
[1759241573961,0.15710873,113270.0,113260.0,0.64284179]
[1759241574160,0.06886303,113270.0,113260.0,0.64284179]
[1759241574362,0.4498381,113280.0,113270.0,0.0882456]
[1759241574563,0.4490381,113280.0,113270.0,0.61113915]
[1759241574766,0.3612,113280.0,113270.0,0.61113915]
[1759241574969,0.4494374,113280.0,113270.0,0.61113915]
[1759241575463,0.3612,113280.0,113270.0,0.61113915]
[1759241575671,0.4494374,113280.0,113270.0,0.61113915]
[1759241575971,0.45841158,113280.0,113270.0,0.61113915]
[1759241576661,0.45841158,113280.0,113270.0,0.52289355]
[1759241576867,0.0882456,113270.0,113260.0,1.48480279]
[1759241577565,0.0882456,113270.0,113260.0,0.64284279]
[1759241577767,0.45841748,113280.0,113270.0,0.0882456]
[1759241578368,0.0882456,113270.0,113260.0,0.64284289]
[1759241578569,0.1602285,113270.0,113260.0,0.64284289]
[1759241578871,0.0719829,113270.0,113260.0,0.64284289]
[1759241579171,0.0882456,113270.0,113260.0,0.64284289]
[1759241579472,0.0882456,113270.0,113260.0,0.61114285]
[1759241581179,0.0882456,113270.0,113260.0,0.0882533]
[1759241581375,0.0882533,113260.0,113250.0,0.11995644]
[1759241581581,0.0882533,113260.0,113250.0,0.0890564]
[1759241582076,1.37194685,113260.0,113250.0,0.0008]
[1759241582481,0.0882685,113240.0,113230.0,0.03170004]
[1759241582781,0.0882841,113220.0,113210.0,0.49996862]
[1759241582974,0.0882841,113220.0,113210.0,0.13756862]
[1759241583175,0.0882841,113220.0,113210.0,0.10626858]
[1759241583371,0.4490841,113220.0,113210.0,0.0882923]
[1759241583572,0.4490841,113220.0,113210.0,0.0886923]
[1759241583776,0.4490841,113220.0,113210.0,0.0882923]
[1759241583976,0.4490841,113220.0,113210.0,0.0886923]
[1759241584368,0.45776541,113220.0,113210.0,0.0886923]
[1759241584575,0.0882928,113210.0,113200.0,0.76199564]
[1759241584780,0.0882928,113210.0,113200.0,0.76279564]
[1759241584982,0.0882928,113210.0,113200.0,0.76199564]
[1759241585172,0.15907793,113210.0,113200.0,0.6424]
[1759241585374,0.51987793,113210.0,113200.0,0.0004]
[1759241585573,0.0883005,113200.0,113190.0,1.00370009]
[1759241585775,0.0883005,113200.0,113190.0,0.03250004]
[1759241585971,0.0883083,113190.0,113180.0,0.12008211]
[1759241586175,0.0883083,113190.0,113180.0,0.08918207]
[1759241587281,1.290745,113200.0,113180.0,0.97287712]
[1759241587475,1.290745,113200.0,113180.0,0.44998357]
[1759241587786,0.4491083,113190.0,113180.0,0.00087017]
[1759241588386,0.4491083,113190.0,113180.0,0.08918587]
[1759241588684,0.4491083,113190.0,113180.0,0.61207942]
[1759241589286,0.4491083,113190.0,113180.0,0.08918587]
[1759241589480,0.4491083,113190.0,113180.0,0.00087017]
[1759241589481,0.5181754,113190.0,113180.0,0.00087017]
[1759241589878,1.44106895,113190.0,113180.0,0.00087017]
[1759241590187,1.44106895,113190.0,113180.0,7.017e-05]
[1759241590384,0.0883157,113180.0,113160.0,0.0016]
[1759241590574,0.0883306,113160.0,113140.0,0.458465]
[1759241590887,0.45799242,113160.0,113150.0,0.0008]
[1759241591481,0.45805719,113160.0,113150.0,0.0008]
[1759241591681,1.82263074,113160.0,113150.0,0.0008]
[1759241592186,0.36086477,113160.0,113150.0,0.61123255]
[1759241592389,0.36086477,113160.0,113150.0,1.01163255]
[1759241592586,0.36126477,113160.0,113150.0,1.01163255]
[1759241592787,0.00046477,113160.0,113150.0,1.37243255]
[1759241595388,0.00046477,113160.0,113150.0,2.21415255]
[1759241597093,0.00046477,113160.0,113150.0,1.291259]
[1759241597385,0.00046477,113160.0,113150.0,0.97243255]
[1759241597784,0.00046477,113160.0,113150.0,1.81415255]
[1759241598783,0.00046477,113160.0,113150.0,2.21415255]
[1759241598983,6.477e-05,113160.0,113150.0,2.24585259]
[1759241599191,0.00046477,113160.0,113150.0,2.24585259]
[1759241599789,0.00046477,113160.0,113150.0,2.37585259]
[1759241599990,0.00046477,113160.0,113150.0,1.13413259]
[1759241600192,0.00046477,113160.0,113150.0,1.97585259]
[1759241600795,0.00046477,113160.0,113150.0,1.94415255]
[1759241600984,0.00046477,113160.0,113150.0,1.81415255]
[1759241601492,6.477e-05,113160.0,113150.0,2.37585259]
[1759241601691,0.00046477,113160.0,113150.0,2.37585259]
[1759241602492,0.00046477,113160.0,113150.0,1.53413259]
[1759241602694,0.00046477,113160.0,113150.0,1.291219]
[1759241602891,0.08879687,113160.0,113150.0,1.291219]
[1759241603094,0.00046477,113160.0,113150.0,1.81411255]
[1759241603291,0.00046477,113160.0,113150.0,2.21411255]
[1759241603491,6.477e-05,113160.0,113150.0,2.24581259]
[1759241603796,0.00046477,113160.0,113150.0,2.24581259]
[1759241603999,6.477e-05,113160.0,113150.0,2.24581259]
[1759241604189,0.00046477,113160.0,113150.0,2.24581259]
[1759241604599,6.477e-05,113160.0,113150.0,2.29336266]
[1759241604793,0.00046477,113160.0,113150.0,2.29336266]
[1759241605196,0.0008,113180.0,113170.0,0.0883241]
[1759241605394,0.0008,113180.0,113170.0,1.81369765]
[1759241605595,0.449093,113210.0,113200.0,0.0883008]
[1759241606097,0.0883027,113200.0,113190.0,0.9299886]
[1759241606398,0.0883027,113200.0,113190.0,0.0883086]
[1759241606698,0.0883027,113200.0,113190.0,0.0004]
[1759241606998,0.0883085,113190.0,113180.0,0.0883105]
[1759241607190,0.0883136,113190.0,113180.0,0.0891138]
[1759241607592,0.0883163,113180.0,113170.0,1.2908011]
[1759241607792,0.0883163,113180.0,113170.0,1.2916011]
[1759241608201,0.97200755,113190.0,113170.0,1.2916011]
[1759241608395,0.449114,113190.0,113180.0,0.0883164]
[1759241609002,0.51991164,113190.0,113180.0,0.0883164]
[1759241609702,0.088317,113180.0,113170.0,1.00429796]
[1759241609904,0.449117,113180.0,113170.0,0.0891206]
[1759241610199,0.15910684,113190.0,113180.0,0.088317]
[1759241610408,0.07079764,113190.0,113180.0,0.61121055]
[1759241610592,0.0004,113190.0,113180.0,0.61121055]
[1759241611106,0.4491004,113210.0,113200.0,0.0883008]
[1759241611802,0.45810931,113210.0,113200.0,0.0883008]
[1759241612396,0.52986188,113210.0,113200.0,0.0883008]
[1759241613401,0.43255257,113210.0,113200.0,0.11978461]
[1759241613702,0.07175257,113210.0,113200.0,0.65874442]
[1759241613894,0.46984504,113220.0,113210.0,0.088293]
[1759241614094,0.38155904,113220.0,113210.0,0.11997417]
[1759241614291,0.38195904,113220.0,113210.0,0.64286772]
[1759241614495,0.02115904,113220.0,113210.0,0.69041779]
[1759241614704,0.0004,113220.0,113210.0,1.01953662]
[1759241614997,1.7280346,113240.0,113220.0,0.0882775]
[1759241615207,1.7280346,113240.0,113230.0,0.0882773]
[1759241615208,0.4490746,113240.0,113230.0,0.0882773]
[1759241615392,1.2906346,113240.0,113230.0,0.0882773]
[1759241615591,1.2906346,113240.0,113220.0,0.64285217]
[1759241615592,0.0882773,113230.0,113220.0,0.64285217]
[1759241615798,0.0882773,113230.0,113220.0,0.11996402]
[1759241615996,0.45771604,113230.0,113220.0,0.03167852]
[1759241616196,0.45771604,113230.0,113220.0,0.11996402]
[1759241616897,0.98060959,113230.0,113220.0,0.03167852]
[1759241617197,0.45771604,113230.0,113220.0,0.088286]
[1759241617698,0.0882862,113220.0,113210.0,0.07922859]
[1759241617898,0.97197975,113220.0,113210.0,0.16752259]
[1759241618095,0.97197975,113220.0,113210.0,0.03167852]
[1759241618096,1.37197975,113220.0,113210.0,0.03167852]
[1759241618303,1.37197975,113220.0,113200.0,0.13584917]
[1759241618304,0.0882943,113210.0,113200.0,0.11997762]
[1759241618501,0.97198785,113210.0,113200.0,0.0882991]
[1759241618805,0.4490943,113210.0,113200.0,0.0882991]
[1759241619008,1.2905343,113210.0,113200.0,0.0882991]
[1759241619400,0.97198495,113220.0,113210.0,0.088295]
[1759241619698,0.3616,113220.0,113210.0,0.088295]
[1759241619906,0.0008,113220.0,113210.0,0.61118855]
[1759241620109,1.29916214,113230.0,113220.0,0.0882872]
[1759241620308,0.45852214,113230.0,113220.0,0.0882872]
[1759241620507,0.37023874,113230.0,113220.0,0.0882872]
[1759241620703,1.29991814,113230.0,113220.0,0.0882872]
[1759241621110,0.37023874,113230.0,113220.0,0.0882872]
[1759241621509,1.36024787,113240.0,113230.0,0.0882794]
[1759241621803,0.0882794,113230.0,113220.0,0.03167852]
[1759241622007,0.97197295,113230.0,113220.0,0.0882872]
[1759241622207,1.37197295,113230.0,113220.0,0.0882872]
[1759241622604,0.8490794,113230.0,113220.0,0.0882872]
[1759241622805,1.37197295,113230.0,113220.0,0.0882872]
[1759241623005,1.60216,113230.0,113220.0,0.0882872]
[1759241623207,1.6904394,113230.0,113220.0,0.0882872]
[1759241623610,1.6904394,113230.0,113210.0,0.07922859]
[1759241623906,1.82226039,113230.0,113220.0,0.0882872]
[1759241624508,0.0882872,113220.0,113210.0,0.11996622]
[1759241624711,0.4490872,113220.0,113210.0,0.11996622]
[1759241625009,0.3608,113220.0,113210.0,0.11996622]
[1759241625213,1.20212,113220.0,113210.0,0.11996622]
[1759241625803,1.2904072,113220.0,113210.0,0.11996622]
[1759241626012,0.3608,113220.0,113210.0,0.11996622]
[1759241627303,0.0004,113220.0,113210.0,0.11996622]
[1759241628204,0.0004,113220.0,113210.0,0.98285952]
[1759241628411,0.0004,113220.0,113210.0,2.192421]
[1759241628705,1.08260257,113240.0,113220.0,0.0882872]
[1759241628914,1.08260257,113240.0,113230.0,0.0882794]
[1759241629211,0.0882794,113230.0,113220.0,0.16738738]
[1759241629411,0.0882794,113230.0,113220.0,0.11992727]
[1759241629708,0.4490794,113230.0,113220.0,0.11992737]
[1759241629914,1.30362263,113230.0,113220.0,0.03164007]
[1759241630205,0.0882873,113220.0,113210.0,0.03164007]
[1759241630406,1.2902873,113220.0,113210.0,0.03164007]
[1759241630608,0.0882951,113210.0,113200.0,0.03164007]
[1759241630803,0.0883029,113200.0,113190.0,0.18553619]
[1759241631003,0.52003557,113200.0,113190.0,0.04977168]
[1759241631209,1.76123557,113200.0,113180.0,0.52821368]
[1759241631408,1.76123557,113200.0,113180.0,0.48075357]